fUSD/lending_fUSD_20260213
["ID","MTS","AMOUNT","RATE_DAILY","PERIOD"]
[405331967,1771006262503,-40.05950664,0.00025105,2]
[405331968,1771006262512,-412.0,0.00028105,2]
[405331969,1771006262521,-412.0,0.00031105,2]
[405331970,1771006262531,-521.0,0.000312,13]
[405331971,1771006262540,-412.0,0.00034105,2]
[405331972,1771006262549,-412.0,0.00037105,2]
[405331973,1771006262558,-336.22060189,0.000373,31]
[405331974,1771006262569,-296.23698611,0.000373,31]
[405331975,1771006262578,-342.24761823,0.000373,14]
[405331976,1771006262588,-1101.721337,0.000373,31]
[405331977,1771006262597,-632.457588,0.000373,31]
[405331978,1771006262607,-521.0,0.000373,19]
[405331979,1771006262616,-136.61147066,0.000389,30]
[405331980,1771006262628,-396.38852934,0.000389,30]
[405331981,1771006262637,-632.457588,0.0004,120]
[405331982,1771006262648,-1101.721337,0.0004,120]
[405331983,1771006262656,-380.43254566,0.0004,120]
[405331984,1771006262668,-252.02504234,0.0004,120]
[405331985,1771006262677,-412.0,0.00040105,2]
[405331986,1771006262686,-632.457588,0.00042,120]
[405331987,1771006262696,-1998.90736966,0.000429,120]
[405331988,1771006263000,-1101.721337,0.000373,31]
[405331989,1771006263009,-632.457588,0.000373,31]
[405331990,1771006263016,-898.99885062,0.000373,31]
[405331991,1771006263025,-202.72248638,0.000373,31]
[405331992,1771006263033,-85.55288707,0.000373,31]
[405331993,1771006263079,-546.90470093,0.000373,31]
[405331994,1771006263086,-1101.721337,0.000373,31]
[405331995,1771006263095,-192.29327273,0.000393,2]
[405331996,1771006263104,-1101.721337,0.0004,120]
[405331997,1771006263113,-632.457588,0.0004,120]
[405331998,1771006263122,-1101.721337,0.0004,120]
[405331999,1771006263131,-632.457588,0.0004,120]
[405332000,1771006263150,-1101.721337,0.0004,120]
[405332001,1771006263160,-491.0,0.00041,60]
[405332002,1771006263169,-1101.721337,0.00042,120]
[405332003,1771006263179,-349.2801653,0.00042,120]
[405332004,1771006263191,-283.1774227,0.00042,120]
[405332005,1771006263200,-1101.721337,0.00042,120]
[405332006,1771006263210,-632.457588,0.00042,120]
[405332007,1771006263219,-702.1436508,0.00042,120]
[405332019,1771006512220,-180.0,6.528e-05,2]
[405332020,1771006512247,-300.0,6.528e-05,2]
[405332021,1771006512270,-1200.0,6.528e-05,2]
[405332022,1771006512294,-300.0,6.528e-05,2]
[405332023,1771006512317,-150.0,6.528e-05,2]
[405332024,1771006512345,-300.0,6.528e-05,2]
[405332025,1771006512371,-471.70053923,6.529e-05,2]
[405332026,1771006512395,-500.0,6.529e-05,2]
[405332027,1771006512417,-400.95457302,6.529e-05,2]
[405332028,1771006512446,-500.0,6.529e-05,2]
[405332029,1771006512474,-197.34488775,6.529e-05,2]
[405332045,1771006665664,212.09,6.4e-05,2]
[405332060,1771006920830,-206.0,6.429e-05,2]
[405332076,1771007403795,206.0,6.429e-05,2]
[405332095,1771007431735,-500.0,6.429e-05,2]
[405332097,1771007431746,-175.91,6.91e-05,2]
[405332099,1771007431756,-185.73940807,7.072e-05,2]
[405332101,1771007431767,-564.26059193,7.072e-05,2]
[405332102,1771007431778,-250.0,8.495e-05,2]
[405332103,1771007431788,-454.44,8.498e-05,2]
[405332104,1771007431798,-1200.0,8.781e-05,2]
[405332105,1771007431808,-300.0,8.781e-05,2]
[405332106,1771007431818,-300.0,8.781e-05,2]
[405332107,1771007431828,-6737.03915106,8.782e-05,2]
[405332108,1771007431866,-1321.58232096,8.782e-05,2]
[405332109,1771007431878,-726.89716718,8.782e-05,2]
[405332110,1771007431890,-3521.02374977,8.782e-05,2]
[405332111,1771007431901,-924.05253866,8.782e-05,2]
[405332112,1771007431913,-3935.87063297,8.782e-05,2]
[405332113,1771007431930,-3711.34153208,8.782e-05,2]
[405332114,1771007431941,-150.0,8.791e-05,2]
[405332115,1771007431950,-334.76577731,8.791e-05,2]
[405332116,1771007431960,-500.0,8.791e-05,2]
[405332117,1771007431970,-500.0,8.791e-05,2]
[405332118,1771007431979,-433.21937909,8.791e-05,2]
[405332119,1771007431990,-66.78062091,8.791e-05,2]
[405332120,1771007432000,-500.0,8.791e-05,2]
[405332121,1771007432010,-500.0,8.791e-05,2]
[405332122,1771007432019,-500.0,8.791e-05,2]
[405332123,1771007432029,-404.24557876,8.791e-05,2]
[405332124,1771007432039,-2853.15567969,8.792e-05,2]
[405332125,1771007432049,-562864.11017138,8.792e-05,2]
[405332126,1771007432062,-210421.41698438,8.792e-05,2]
[405332127,1771007432074,-261565.90017675,8.792e-05,2]
[405332128,1771007432085,-324.01857318,8.792e-05,2]
[405332132,1771007432116,-320.65660765,8.792e-05,2]
[405332135,1771007432128,-625.6194234,8.792e-05,2]
[405332139,1771007432140,-1335.46765191,8.792e-05,2]
[405332141,1771007432151,-1127.18000044,8.792e-05,2]
[405332142,1771007432182,-745.33102828,8.792e-05,2]
[405332143,1771007432194,-1825.06357538,8.792e-05,2]
[405332144,1771007432205,-878.94188727,8.792e-05,2]
[405332145,1771007432216,-2215.38478634,8.792e-05,2]
[405332146,1771007432228,-5265.45272466,8.792e-05,2]
[405332147,1771007432255,-8301.16846777,8.792e-05,2]
[405332152,1771007437910,-410.03200002,8.792e-05,2]
[405332153,1771007438072,-1811.16,8.792e-05,2]
[405332154,1771007438084,-1085.74562204,8.792e-05,2]
[405332155,1771007438095,-388499.9999999,8.792e-05,2]
[405332156,1771007438129,-585813.86701925,8.792e-05,2]
[405332157,1771007438139,-2500.0,8.792e-05,2]
[405332158,1771007438149,-558.67,8.891e-05,2]
[405332159,1771007438158,-500.0,8.891e-05,2]
[405332160,1771007438168,-500.0,8.891e-05,2]
[405332161,1771007438178,-500.0,8.891e-05,2]
[405332162,1771007438188,-500.0,8.891e-05,2]
[405332163,1771007438197,-285.59653332,8.891e-05,2]
[405332164,1771007438207,-500.0,8.891e-05,2]
[405332165,1771007438216,-500.0,8.891e-05,2]
[405332166,1771007438226,-500.0,8.891e-05,2]
[405332167,1771007438235,-500.0,8.891e-05,2]
[405332168,1771007438245,-500.0,8.891e-05,2]
[405332169,1771007438254,-500.0,8.891e-05,2]
[405332170,1771007438264,-500.0,8.891e-05,2]
[405332171,1771007438274,-300.0,8.891e-05,2]
[405332172,1771007438284,-9999.99,8.902e-05,2]
[405332173,1771007438294,-999.99,8.902e-05,2]
[405332174,1771007438303,-177.94510703,8.902e-05,2]
[405332175,1771007438313,-6433.6322266,8.902e-05,2]
[405332176,1771007438323,-669063.4908,8.902e-05,2]
[405332177,1771007438332,-9999.99,8.902e-05,2]
[405332178,1771007438342,-499.99,8.902e-05,2]
[405332179,1771007438351,-299.99,8.902e-05,2]
[405332181,1771007438361,-4133.15,8.902e-05,2]
[405332183,1771007438370,-150.99,8.902e-05,2]
[405332185,1771007438380,-9999.99,8.902e-05,2]
[405332188,1771007438389,-454.44,8.97e-05,2]
[405332190,1771007438399,-166.66,9e-05,2]
[405332192,1771007438409,-9999.99,9.001e-05,2]
[405332193,1771007438419,-150.99,9.001e-05,2]
[405332195,1771007438429,-948.81,9.05e-05,2]
[405332198,1771007438439,-558.67,9.165e-05,2]
[405332200,1771007438449,-948.81,9.254e-05,2]
[405332202,1771007438459,-166.66,9.297e-05,2]
[405332204,1771007438468,-558.67,9.439e-05,2]
[405332205,1771007438477,-454.44,9.442e-05,2]
[405332208,1771007438487,-948.81,9.458e-05,2]
[405332210,1771007438497,-166.66,9.595e-05,2]
[405332211,1771007438506,-1680.0,9.659e-05,2]
[405332214,1771007438516,-420.0,9.659e-05,2]
[405332216,1771007438526,-948.81,9.663e-05,2]
[405332219,1771007438539,-255.0,9.67e-05,2]
[405332221,1771007438549,-558.67,9.713e-05,2]
[405332223,1771007438559,-948.81,9.867e-05,2]
[405332225,1771007438568,-166.66,9.892e-05,2]
[405332228,1771007438578,-454.44,9.914e-05,2]
[405332230,1771007438588,-558.68,9.987e-05,2]
[405332232,1771007438597,-198.56402442,0.0001,2]
[405332234,1771007438607,-948.81,0.00010071,2]
[405332236,1771007438616,-500.0,0.00010074,2]
[405332237,1771007438626,-209.81,0.00010109,2]
[405332239,1771007438636,-166.66,0.00010189,2]
[405332241,1771007438649,-948.81,0.00010275,2]
[405332243,1771007438658,-454.44,0.00010386,2]
[405332244,1771007438667,-948.81,0.00010479,2]
[405332246,1771007438676,-166.66,0.00010486,2]
[405332248,1771007438685,-240.0,0.00010625,2]
[405332249,1771007438695,-180.0,0.00010625,2]
[405332251,1771007438705,-948.81,0.00010683,2]
[405332252,1771007438716,-398.23384923,0.000108,2]
[405332253,1771007438726,-454.44,0.00010858,2]
[405332254,1771007438735,-948.81,0.00010887,2]
[405332255,1771007438745,-2007.5168799,0.000109,2]
[405332256,1771007438754,-150.0,0.00011031,7]
[405332257,1771007438960,-948.81,0.00011091,2]
[405332258,1771007438970,-322.08374964,0.00011099,2]
[405332259,1771007438979,-322.08374959,0.00011099,2]
[405332260,1771007438989,-322.08374959,0.00011099,2]
[405332261,1771007438998,-779.99521022,0.00011099,2]
[405332262,1771007439008,-779.99521021,0.00011099,2]
[405332263,1771007439017,-779.99521021,0.00011099,2]
[405332264,1771007439026,-948.81,0.00011296,2]
[405332265,1771007439037,-454.44,0.00011331,2]
[405332266,1771007439046,-948.81,0.000115,2]
[405332267,1771007439056,-948.81,0.00011704,2]
[405332268,1771007439066,-322.08374959,0.00011761,2]
[405332269,1771007439075,-454.44,0.00011803,2]
[405332270,1771007439085,-948.81,0.00011908,2]
[405332271,1771007439095,-779.99521021,0.00012099,2]
[405332272,1771007439105,-948.81,0.00012112,2]
[405332273,1771007439115,-454.44,0.00012275,2]
[405332274,1771007439125,-948.81,0.00012316,2]
[405332275,1771007439134,-948.81,0.0001252,2]
[405332276,1771007439144,-159.289591,0.00012685,2]
[405332277,1771007439154,-948.81,0.00012725,2]
[405332278,1771007439163,-454.44,0.00012747,2]
[405332279,1771007439172,-322.08374959,0.00012784,2]
[405332280,1771007439182,-32832.125,0.00012836,2]
[405332281,1771007439191,-1000.0,0.00012836,2]
[405332282,1771007439201,-701.7303,0.00012836,2]
[405332283,1771007439210,-948.81,0.00012929,2]
[405332284,1771007439220,-469428.35615191,0.00012936,2]
[405332285,1771007439230,-173.38608461,0.00013184,2]
[405332286,1771007439241,-779.99521021,0.00013198,2]
[405332287,1771007439251,-2007.51687989,0.00013258,2]
[405332288,1771007439260,-200.0,0.00013699,2]
[405332289,1771007439269,-247.81,0.00013733,2]
[405332290,1771007439280,-322.08374959,0.00013808,2]
[405332291,1771007439290,-779.99521021,0.00014296,2]
[405332292,1771007439300,-322.08374959,0.00014831,2]
[405332293,1771007439309,-779.99521021,0.00015395,2]
[405332294,1771007439317,-322.08374959,0.00015854,2]
[405332295,1771007439326,-179.70658486,0.00016199,2]
[405332296,1771007439335,-500.0,0.00016199,2]
[405332297,1771007439344,-188.73535817,0.00016199,2]
[405332298,1771007439354,-374.16268162,0.00016199,2]
[405332299,1771007439363,-500.0,0.00016199,2]
[405332300,1771007439372,-500.0,0.00016199,2]
[405332301,1771007439381,-500.0,0.00016199,2]
[405332302,1771007439390,-500.0,0.00016199,2]
[405332303,1771007439400,-614.96405926,0.00016199,2]
[405332304,1771007439409,-500.0,0.00016199,2]
[405332305,1771007439419,-500.0,0.00016199,2]
[405332306,1771007439429,-419984.96857857,0.000162,5]
[405332307,1771007439439,-779.99521021,0.00016494,2]
[405332308,1771007439451,-322.08374959,0.00016877,2]
[405332309,1771007439462,-779.99521021,0.00017593,2]
[405332310,1771007439471,-2007.51687989,0.00017726,2]
[405332311,1771007439481,-322.08374959,0.000179,2]
[405332312,1771007439491,-198.56402442,0.0001799,2]
[405332313,1771007439500,-3163044.88163116,0.00018,2]
[405332314,1771007439509,-30597.33669585,0.00018,2]
[405332315,1771007439519,-2646643.47675755,0.00018,2]
[405332316,1771007439540,-268.83358263,0.00018,2]
[405332317,1771007439563,-383.909501,0.00018,2]
[405332318,1771007439819,-371.675713,0.00016914,7]
[405332319,1771007439829,-1659.69815973,0.00018,2]
[405332320,1771007439839,-10989.316375,0.00018,2]
[405332321,1771007439851,-544.11456689,0.00018,2]
[405332322,1771007439869,-3460.36868557,0.00018,2]
[405332323,1771007439880,-13843.03481503,0.00018,2]
[405332324,1771007439911,-524.78583217,0.00018,2]
[405332348,1771007443521,-839.08587254,9.001e-05,2]
[405332349,1771007443531,-707.83824969,0.00018,2]
[405332350,1771007443673,-261.98000005,0.00018,2]
[405332351,1771007443690,-480.97130209,0.00018,2]
[405332352,1771007444483,-400.2,0.00018,2]
[405332353,1771007444495,-718.81246155,0.00018,2]
[405332356,1771007445662,-1518.81597667,0.00018,2]
[405332357,1771007445824,-8905.29463477,0.00018,2]
[405332358,1771007445881,-14559.0,0.00018,2]
[405332359,1771007445937,-7547.73986743,0.00018,2]
[405332361,1771007445996,-1707.71967893,0.00018,2]
[405332382,1771007516379,500.0,6.329e-05,2]
[405332433,1771008112630,801.03815133,6.689e-05,2]
[405332434,1771008112665,621.76957416,6.689e-05,2]
[405332435,1771008113407,1273.03725037,6.689e-05,2]
[405332436,1771008113464,1930.47210275,6.689e-05,2]
[405332484,1771008631819,-200.0,7.7e-05,2]
[405332485,1771008631828,-250.0,7.75e-05,2]
[405332486,1771008631838,-331.98694337,7.8e-05,2]
[405332487,1771008631850,-68.01305663,7.8e-05,2]
[405332488,1771008631859,-600.0,7.9e-05,2]
[405332489,1771008631869,-250.0,7.931e-05,2]
[405332490,1771008631878,-800.0,8e-05,2]
[405332491,1771008631887,-159.289591,8.257e-05,2]
[405332492,1771008631897,-1200.0,8.38e-05,2]
[405332493,1771008631906,-163.08168309,8.381e-05,2]
[405332494,1771008631918,-1616.5582719,8.381e-05,2]
[405332495,1771008631929,-4341.15418,8.381e-05,2]
[405332496,1771008631944,-1013.2571576,8.381e-05,2]
[405332497,1771008631956,-48.53045769,8.381e-05,2]
[405332498,1771008631965,-300.0,8.389e-05,2]
[405332499,1771008631974,-110.33796209,8.389e-05,2]
[405332500,1771008631987,-189.66203791,8.389e-05,2]
[405332501,1771008631996,-300.0,8.389e-05,2]
[405332502,1771008632005,-150.0,8.39e-05,2]
[405332503,1771008632015,-159.54796209,8.39e-05,2]
[405332504,1771008632040,-140.45203791,8.39e-05,2]
[405332505,1771008632050,-700.60202209,8.39e-05,2]
[405332506,1771008632061,-499.39797791,8.39e-05,2]
[405332507,1771008632072,-376.49129566,8.391e-05,2]
[405332508,1771008632099,-3960.42765643,8.391e-05,2]
[405332509,1771008638138,-412.93900001,8.391e-05,2]
[405332510,1771008638150,-626312.3172479,8.391e-05,2]
[405332511,1771008638159,-764.185,8.419e-05,2]
[405332512,1771008638170,-250.0,8.47e-05,2]
[405332513,1771008638179,-73515.1392,8.491e-05,2]
[405332514,1771008638188,-701.7303,8.491e-05,2]
[405332516,1771008638198,-218.62213783,8.591e-05,2]
[405332518,1771008638207,-358.32105063,8.591e-05,2]
[405332519,1771008638217,-500.0,8.591e-05,2]
[405332520,1771008638227,-500.0,8.591e-05,2]
[405332521,1771008638237,-500.0,8.591e-05,2]
[405332522,1771008638247,-500.0,8.591e-05,2]
[405332523,1771008638256,-500.0,8.591e-05,2]
[405332524,1771008638267,-500.0,8.591e-05,2]
[405332525,1771008638277,-500.0,8.591e-05,2]
[405332526,1771008638287,-500.0,8.591e-05,2]
[405332527,1771008638296,-500.0,8.591e-05,2]
[405332528,1771008638306,-246.02109119,8.591e-05,2]
[405332529,1771008638317,-500.0,8.591e-05,2]
[405332530,1771008638327,-500.0,8.591e-05,2]
[405332531,1771008638337,-500.0,8.591e-05,2]
[405332532,1771008638348,-9999.99,8.592e-05,2]
[405332533,1771008638358,-499.99,8.592e-05,2]
[405332534,1771008638368,-150.99,8.592e-05,2]
[405332535,1771008638377,-4133.15,8.592e-05,2]
[405332536,1771008638387,-9999.99,8.592e-05,2]
[405332537,1771008638397,-150.99,8.592e-05,2]
[405332538,1771008638407,-999.99,8.592e-05,2]
[405332539,1771008638418,-9999.99,8.592e-05,2]
[405332540,1771008638428,-5912.89,8.592e-05,2]
[405332541,1771008638438,-9999.99,8.592e-05,2]
[405332542,1771008638448,-558.67,8.691e-05,2]
[405332543,1771008638458,-32832.125,8.692e-05,2]
[405332544,1771008638468,-158.08351023,8.915e-05,2]
[405332545,1771008638478,-160.86444378,8.915e-05,2]
[405332546,1771008638489,-558.67,8.965e-05,2]
[405332547,1771008638499,-1346.0,9.218e-05,2]
[405332548,1771008638711,-420.0,9.228e-05,2]
[405332549,1771008638732,-255.0,9.229e-05,2]
[405332550,1771008638742,-420.0,9.229e-05,2]
[405332551,1771008638752,-558.67,9.239e-05,2]
[405332552,1771008638761,-558.67,9.513e-05,2]
[405332553,1771008638771,-558.68,9.787e-05,2]
[405332554,1771008638780,-883.75246884,9.914e-05,2]
[405332555,1771008638790,-500.0,0.0001,2]
[405332556,1771008638799,-500.0,0.0001,2]
[405332557,1771008638807,-522.64508925,0.0001,2]
[405332558,1771008638816,-500.0,0.0001,2]
[405332559,1771008638824,-151.0,0.0001,2]
[405332560,1771008638833,-528.99656538,0.0001,2]
[405332561,1771008638843,-202.81840748,0.0001,2]
[405332562,1771008638852,-500.0,0.0001,2]
[405332563,1771008638862,-202.27978627,0.0001,2]
[405332564,1771008638871,-205.48850885,0.0001,2]
[405332565,1771008638881,-587.0,0.00010151,2]
[405332566,1771008638888,-195.0,0.00010152,2]
[405332567,1771008638895,-180.0,0.00010152,2]
[405332568,1771008638903,-250.0,0.00010174,2]
[405332569,1771008638910,-2762.32849189,0.000109,2]
[405332570,1771008638918,-150.0,0.00010959,2]
[405332571,1771008638925,-150.0,0.00011033,7]
[405332572,1771008638933,-398.08583416,0.00011099,2]
[405332573,1771008638941,-398.0858341,0.00011099,2]
[405332574,1771008638947,-398.0858341,0.00011099,2]
[405332575,1771008638955,-823.0,0.00011166,2]
[405332576,1771008638962,-1852.42,0.00011307,2]
[405332577,1771008638970,-500.0,0.00011559,2]
[405332578,1771008638977,-13452.83,0.0001156,2]
[405332579,1771008638984,-200.0,0.00011576,2]
[405332580,1771008638994,-398.0858341,0.00011694,2]
[405332581,1771008639004,-1020.0,0.00012282,2]
[405332582,1771008639014,-15428.07,0.00012418,2]
[405332583,1771008639024,-398.0858341,0.00012795,2]
[405332584,1771008639038,-271.33,0.00012877,2]
[405332585,1771008639047,-150.0,0.00012929,2]
[405332586,1771008639057,-150.0,0.00013227,2]
[405332587,1771008639066,-513.0,0.00013233,2]
[405332588,1771008639078,-160.0,0.00013245,2]
[405332589,1771008639088,-173.38608461,0.00013245,2]
[405332590,1771008639098,-2762.32849186,0.00013321,2]
[405332591,1771008639110,-500.0,0.00013425,2]
[405332592,1771008639120,-366.198,0.00013698,2]
[405332593,1771008639130,-398.0858341,0.00013897,2]
[405332594,1771008639139,-398.0858341,0.00014998,2]
[405332595,1771008639149,-250.0,0.00015,2]
[405332596,1771008639159,-575.78,0.00015068,2]
[405332597,1771008639168,-398.0858341,0.00016099,2]
[405332598,1771008639177,-575.78,0.00016438,2]
[405332599,1771008639187,-398.0858341,0.000172,2]
[405332600,1771008639196,-481.89542729,0.00017742,2]
[405332601,1771008639206,-1000.0,0.000178,6]
[405332602,1771008639216,-800.0,0.00017808,2]
[405332603,1771008639225,-6899.81,0.0001783,2]
[405332604,1771008639235,-4902.722448,0.00017874,2]
[405332605,1771008639245,-10163.6,0.000179,2]
[405332606,1771008639254,-1000.0,0.000179,2]
[405332607,1771008639264,-200.0,0.000179,6]
[405332608,1771008639274,-809.78229186,0.00017951,3]
[405332609,1771008639284,-192.73718597,0.00017951,2]
[405332610,1771008639294,-195.53704402,0.0001799,2]
[405332611,1771008639304,-2132162.58263621,0.00018,2]
[405332612,1771008639314,-2762.32849186,0.00018251,2]
[405332613,1771008639325,-398.0858341,0.00018301,2]
[405332614,1771008639334,-1197.11408155,0.00018401,2]
[405332615,1771008639343,-1000.0,0.00018501,2]
[405332616,1771008639353,-200.18551342,0.00018891,2]
[405332617,1771008639362,-522.0,0.00019,2]
[405332618,1771008639372,-10477.38,0.00019502,2]
[405332619,1771008639382,-4933.790515,0.000199,3]
[405332620,1771008639392,-2482.93984821,0.0001995,15]
[405332621,1771008639402,-1535.99592116,0.0002,2]
[405332622,1771008639411,-176.8188652,0.0002,2]
[405332623,1771008639426,-4876.72866373,0.0002,2]
[405332624,1771008639436,-16484.69,0.00020553,2]
[405332625,1771008639446,-1000.0,0.00020813,2]
[405332626,1771008639455,-18766.5026135,0.00021,2]
[405332627,1771008639464,-12546.97,0.00021068,2]
[405332628,1771008639474,-217.0,0.00021476,2]
[405332629,1771008639483,-1093.9452449,0.0002158,2]
[405332630,1771008639493,-5000.0,0.00021918,2]
[405332631,1771008639503,-391.60987072,0.00022,2]
[405332632,1771008639512,-150996.81,0.00022,2]
[405332633,1771008639522,-717.21,0.000222,7]
[405332634,1771008639532,-244.0921777,0.00022407,2]
[405332635,1771008639541,-15211.73855242,0.00022959,2]
[405332636,1771008639551,-996.31729432,0.00023,2]
[405332637,1771008639561,-160.0,0.00023,2]
[405332638,1771008639572,-1000.0,0.00023126,2]
[405332639,1771008639581,-2762.32849186,0.00023181,2]
[405332640,1771008639591,-3240.0,0.0002425,2]
[405332641,1771008639600,-445.47518992,0.00024387,2]
[405332642,1771008639610,-522.0,0.00024545,7]
[405332643,1771008639619,-1000.0,0.00024658,2]
[405332644,1771008639628,-1197.11408153,0.00024735,2]
[405332645,1771008639638,-130806.71926924,0.00025,60]
[405332646,1771008639648,-1000.0,0.00025438,2]
[405332647,1771008639659,-1589.20804554,0.0002544,2]
[405332648,1771008639668,-3488.0,0.00025835,2]
[405332649,1771008639677,-1337.0,0.00025835,2]
[405332650,1771008639687,-1288.0,0.00025835,2]
[405332651,1771008639696,-617.0,0.00025835,2]
[405332652,1771008639706,-2450.0,0.00025835,2]
[405332653,1771008639715,-346.323,0.00025835,2]
[405332654,1771008639724,-150996.81,0.000261,2]
[405332655,1771008639734,-308.38013303,0.00026805,2]
[405332656,1771008639744,-398.04903173,0.00026805,2]
[405332657,1771008639754,-250.0,0.00026805,2]
[405332658,1771008639764,-256.99686279,0.00026805,2]
[405332659,1771008639775,-250.0,0.00026805,2]
[405332660,1771008639784,-278.64031082,0.00026805,2]
[405332661,1771008639794,-500.0,0.00026805,2]
[405332662,1771008639804,-173.38608461,0.00027,3]
[405332663,1771008639815,-173.38608461,0.00027,3]
[405332664,1771008639825,-325.38,0.00027119,2]
[405332665,1771008639834,-195.53704402,0.00027316,2]
[405332666,1771008639843,-150.0,0.00027369,2]
[405332667,1771008639852,-419.210602,0.0002737,2]
[405332668,1771008639862,-500.0,0.00027397,20]
[405332669,1771008639871,-1343.12,0.00027397,30]
[405332670,1771008639881,-155.0,0.00027407,3]
[405332671,1771008639891,-1660.18,0.00027689,2]
[405332672,1771008639900,-1000.0,0.00027751,2]
[405332673,1771008639910,-2762.32849186,0.0002811,2]
[405332674,1771008639919,-3488.0,0.00028835,2]
[405332675,1771008639929,-1337.0,0.00028835,2]
[405332676,1771008639939,-1288.0,0.00028835,2]
[405332677,1771008639948,-2450.0,0.00028835,2]
[405332678,1771008639958,-2000.0,0.0003,2]
[405332679,1771008639967,-522.0,0.00030091,12]
[405332680,1771008639976,-155.01,0.00030411,120]
[405332681,1771008639986,-152.0,0.00030577,3]
[405332682,1771008639996,-150996.81,0.000306,2]
[405332683,1771008640005,-192.73718597,0.00030843,2]
[405332684,1771008640015,-809.78229186,0.00030843,6]
[405332685,1771008640024,-1343.12,0.0003105,30]
[405332686,1771008640035,-1197.11408153,0.00031068,2]
[405332687,1771008640044,-152.0,0.00031706,4]
[405332688,1771008640054,-3488.0,0.00031835,2]
[405332689,1771008640063,-1337.0,0.00031835,2]
[405332690,1771008640074,-1288.0,0.00031835,2]
[405332691,1771008640083,-2450.0,0.00031835,2]
[405332692,1771008640092,-224.21785662,0.00031891,14]
[405332693,1771008640102,-152.0,0.00032835,5]
[405332694,1771008640113,-419.210602,0.00032849,30]
[405332695,1771008640122,-374.06,0.000329,2]
[405332696,1771008640132,-2762.32849186,0.0003304,2]
[405332697,1771008640141,-214.14,0.000331,14]
[405332698,1771008640151,-300.140249,0.00033221,62]
[405332699,1771008640161,-490.0,0.00033317,30]
[405332700,1771008640171,-7590.0,0.00033368,5]
[405332701,1771008640180,-240.19,0.000334,30]
[405332702,1771008640190,-764.186,0.00033815,36]
[405332703,1771008640200,-152.0,0.00033964,6]
[405332704,1771008640210,-302.0,0.000342,2]
[405332705,1771008640219,-593.56,0.000343,14]
[405332706,1771008640228,-150996.81,0.000343,2]
[405332707,1771008640238,-1343.12,0.00034703,30]
[405332708,1771008640252,-1500.0,0.00034795,2]
[405332709,1771008640261,-3488.0,0.00034835,2]
[405332710,1771008640272,-1337.0,0.00034835,2]
[405332711,1771008640285,-1288.0,0.00034835,2]
[405332712,1771008640294,-2450.0,0.00034835,2]
[405332713,1771008640304,-152.0,0.00035093,7]
[405332714,1771008640313,-522.0,0.00035636,17]
[405332715,1771008640328,-400.73548,0.00035888,30]
[405332716,1771008640344,-374.06,0.000359,2]
[405332717,1771008640357,-2000.0,0.000359,2]
[405332718,1771008640368,-400.73548,0.00036088,30]
[405332719,1771008640380,-152.0,0.00036222,8]
[405332721,1771008640394,-400.73548,0.00036288,30]
[405332723,1771008640408,-400.73548,0.00036488,30]
[405332725,1771008640422,-400.73548,0.00036688,30]
[405332727,1771008640435,-1335.7849,0.00036888,7]
[405332730,1771008640448,-400.73548,0.00036888,30]
[405332732,1771008640461,-151.162535,0.00036986,31]
[405332734,1771008640472,-151.0,0.00036986,31]
[405332737,1771008640483,-151.0,0.00036986,31]
[405332739,1771008640495,-151.0,0.00036986,31]
[405332741,1771008640507,-179.44251,0.00036986,31]
[405332744,1771008640519,-153.66688,0.00036986,31]
[405332746,1771008640532,-151.0,0.00036986,31]
[405332748,1771008640545,-151.0,0.00036986,31]
[405332751,1771008640558,-400.73548,0.00037088,30]
[405332753,1771008640570,-400.73548,0.00037288,30]
[405332755,1771008640583,-152.0,0.00037351,9]
[405332757,1771008640595,-1197.11408153,0.00037402,10]